fUSD/lending_fUSD_20241110
["ID","MTS","AMOUNT","RATE_DAILY","PERIOD"]
[341905988,1731277873081,-2744.18,0.00014789,2]
[341905989,1731277873090,-2744.18,0.00014789,2]
[341905990,1731277873100,-2744.18,0.00014789,2]
[341905991,1731277873109,-1857.24,0.00014789,2]
[341905992,1731277873119,-2744.18,0.00014789,2]
[341905993,1731277873128,-1857.24,0.00014789,2]
[341905994,1731277873137,-2744.3,0.00014789,2]
[341905995,1731277873146,-1857.24,0.00014789,2]
[341905996,1731277873155,-1235.06,0.00014789,2]
[341905997,1731277873165,-9149.24,0.00014789,2]
[341905998,1731277873174,-9149.24,0.00014789,2]
[341905999,1731277873183,-9149.24,0.00014789,2]
[341906000,1731277873193,-500.0,0.00014789,2]
[341906001,1731277873202,-500.0,0.00014789,2]
[341906002,1731277873212,-500.0,0.00014789,2]
[341906003,1731277873221,-500.0,0.00014789,2]
[341906004,1731277873230,-616.56,0.00014789,2]
[341906005,1731277873240,-11038.89,0.00014789,2]
[341906006,1731277873249,-11038.89,0.00014789,2]
[341906007,1731277873259,-11038.89,0.00014789,2]
[341906008,1731277873270,-10049.06,0.00014789,2]
[341906009,1731277873279,-10049.06,0.00014789,2]
[341906010,1731277873289,-10049.06,0.00014789,2]
[341906011,1731277873299,-10049.06,0.00014789,2]
[341906012,1731277873308,-2627.99,0.00014789,2]
[341906013,1731277873317,-10049.06,0.00014789,2]
[341906014,1731277873327,-10049.25988505,0.00014789,2]
[341906015,1731277873336,-1444.32,0.00014789,2]
[341906016,1731277873346,-3418.69,0.00014789,2]
[341906017,1731277873356,-3418.69,0.00014789,2]
[341906018,1731277873365,-3418.69,0.00014789,2]
[341906019,1731277873374,-500.0,0.00014789,2]
[341906020,1731277873383,-8139.44,0.00014789,2]
[341906021,1731277873393,-8139.44,0.00014789,2]
[341906022,1731277873402,-8139.44,0.00014789,2]
[341906023,1731277873412,-500.0,0.00014789,2]
[341906024,1731277873421,-614.53,0.00014789,2]
[341906025,1731277873431,-500.0,0.00014789,2]
[341906026,1731277873440,-614.53,0.00014789,2]
[341906027,1731277873450,-500.0,0.00014789,2]
[341906028,1731277873459,-614.53,0.00014789,2]
[341906029,1731277873468,-614.53,0.00014789,2]
[341906030,1731277873477,-614.53,0.00014789,2]
[341906031,1731277873487,-614.54890276,0.00014789,2]
[341906032,1731277873496,-936.16,0.00014789,2]
[341906033,1731277873505,-4910.64,0.00014789,2]
[341906034,1731277873517,-4910.64,0.00014789,2]
[341906035,1731277873526,-4910.64,0.00014789,2]
[341906036,1731277873535,-690.64,0.00014789,2]
[341906037,1731277873547,-610.07,0.00014789,2]
[341906038,1731277873557,-610.07,0.00014789,2]
[341906039,1731277873567,-610.07,0.00014789,2]
[341906040,1731277873577,-610.07,0.00014789,2]
[341906041,1731277873587,-610.07,0.00014789,2]
[341906042,1731277873596,-610.1566634,0.00014789,2]
[341906043,1731277873605,-535.92,0.00014789,2]
[341906044,1731277873614,-535.92,0.00014789,2]
[341906045,1731277873626,-535.92,0.00014789,2]
[341906046,1731277873636,-3542.66,0.00014789,2]
[341906047,1731277873645,-3542.66,0.00014789,2]
[341906048,1731277873654,-3542.66,0.00014789,2]
[341906049,1731277873664,-3212.68,0.00014789,2]
[341906050,1731277873673,-1548.58,0.00014789,2]
[341906051,1731277873683,-1548.58,0.00014789,2]
[341906052,1731277873692,-814.47,0.00014789,2]
[341906053,1731277873702,-500.0,0.00014789,2]
[341906054,1731277873712,-814.47,0.00014789,2]
[341906055,1731277873722,-814.47,0.00014789,2]
[341906056,1731277873731,-814.47,0.00014789,2]
[341906057,1731277873741,-814.47,0.00014789,2]
[341906058,1731277873750,-814.47,0.00014789,2]
[341906059,1731277873760,-814.47,0.00014789,2]
[341906060,1731277873772,-814.5298254,0.00014789,2]
[341906061,1731277873783,-1540.59,0.00014789,2]
[341906062,1731277873792,-1540.59,0.00014789,2]
[341906063,1731277873802,-1540.59,0.00014789,2]
[341906064,1731277873812,-687.46,0.00014789,2]
[341906065,1731277873822,-536.49,0.00014789,2]
[341906066,1731277873831,-536.49,0.00014789,2]
[341906067,1731277873841,-536.49,0.00014789,2]
[341906068,1731277873851,-536.49,0.00014789,2]
[341906069,1731277873861,-536.49,0.00014789,2]
[341906070,1731277873871,-536.52709993,0.00014789,2]
[341906071,1731277873880,-1474.27,0.00014789,2]
[341906072,1731277873890,-1474.27,0.00014789,2]
[341906073,1731277873900,-500.0,0.00014789,2]
[341906074,1731277873909,-1474.27,0.00014789,2]
[341906075,1731277873919,-1474.27,0.00014789,2]
[341906076,1731277873928,-1474.27,0.00014789,2]
[341906077,1731277873938,-1474.27,0.00014789,2]
[341906078,1731277873947,-1474.27,0.00014789,2]
[341906079,1731277873957,-1474.38153309,0.00014789,2]
[341906080,1731277873967,-3014.98,0.00014789,2]
[341906081,1731277873976,-3014.98,0.00014789,2]
[341906082,1731277873986,-3014.98,0.00014789,2]
[341906083,1731277873996,-1865.42,0.00014789,2]
[341906084,1731277874006,-1865.42,0.00014789,2]
[341906085,1731277874016,-1865.42,0.00014789,2]
[341906086,1731277874025,-8633.46,0.00014789,2]
[341906087,1731277874036,-8633.46,0.00014789,2]
[341906088,1731277874045,-8633.46,0.00014789,2]
[341906089,1731277874055,-500.0,0.00014789,2]
[341906090,1731277874065,-500.0,0.00014789,2]
[341906091,1731277874075,-500.0,0.00014789,2]
[341906092,1731277874084,-591.33179875,0.00014789,2]
[341906093,1731277874094,-500.0,0.00014789,2]
[341906094,1731277874104,-2620.47,0.00014789,2]
[341906095,1731277874114,-500.0,0.00014789,2]
[341906096,1731277874123,-500.0,0.00014789,2]
[341906097,1731277874133,-529.6346485,0.00014789,2]
[341906098,1731277874143,-791.14,0.00014789,2]
[341906099,1731277874152,-791.14,0.00014789,2]
[341906100,1731277874162,-791.14,0.00014789,2]
[341906101,1731277874172,-791.14,0.00014789,2]
[341906102,1731277874182,-791.14,0.00014789,2]
[341906103,1731277874193,-791.14,0.00014789,2]
[341906104,1731277874202,-791.14,0.00014789,2]
[341906105,1731277874211,-791.22493438,0.00014789,2]
[341906106,1731277874222,-581.39414399,0.00014789,2]
[341906107,1731277874231,-5594.85,0.00014789,2]
[341906108,1731277874241,-5594.85,0.00014789,2]
[341906109,1731277874250,-5594.85,0.00014789,2]
[341906110,1731277874260,-500.0,0.00014789,2]
[341906111,1731277874274,-318.29851995,0.00014789,2]
[341906112,1731277874284,-2824.34,0.00014789,2]
[341906113,1731277874294,-2824.34,0.00014789,2]
[341906114,1731277874304,-2824.34,0.00014789,2]
[341906115,1731277874313,-151.0,0.0001479,2]
[341906116,1731277874323,-156.700425,0.0001479,2]
[341906117,1731277874332,-151.0,0.0001479,2]
[341906118,1731277874342,-151.0,0.0001479,2]
[341906119,1731277874352,-151.0,0.0001479,2]
[341906120,1731277874361,-151.0,0.0001479,2]
[341906121,1731277874371,-307.145341,0.0001479,2]
[341906122,1731277874381,-307.145341,0.0001479,2]
[341906123,1731277874390,-151.0,0.0001479,2]
[341906124,1731277874400,-253.062087,0.0001479,2]
[341906125,1731277874409,-253.062087,0.0001479,2]
[341906126,1731277874418,-151.0,0.0001479,2]
[341906127,1731277874427,-151.0,0.0001479,2]
[341906128,1731277874437,-151.0,0.0001479,2]
[341906129,1731277874448,-257.74,0.0001479,2]
[341906130,1731277874457,-447.4,0.0001479,2]
[341906131,1731277874467,-500.0,0.0001479,2]
[341906132,1731277874476,-500.0,0.0001479,2]
[341906133,1731277874485,-407.84,0.0001479,2]
[341906134,1731277874495,-250.0,0.0001479,2]
[341906135,1731277874504,-250.0,0.0001479,2]
[341906136,1731277874514,-250.0,0.0001479,2]
[341906137,1731277874526,-250.0,0.0001479,2]
[341906138,1731277874536,-607.25,0.0001479,2]
[341906139,1731277874547,-659.92,0.0001479,2]
[341906140,1731277874559,-659.92,0.0001479,2]
[341906141,1731277874569,-659.92,0.0001479,2]
[341906142,1731277874579,-607.25,0.0001479,2]
[341906143,1731277874589,-659.92,0.0001479,2]
[341906144,1731277874599,-607.25,0.0001479,2]
[341906145,1731277874609,-607.25,0.0001479,2]
[341906146,1731277874618,-151.0,0.0001479,2]
[341906147,1731277874631,-151.0,0.0001479,2]
[341906148,1731277874640,-740.11,0.0001479,2]
[341906149,1731277874649,-740.11,0.0001479,2]
[341906150,1731277874659,-740.11,0.0001479,2]
[341906151,1731277874668,-740.11,0.0001479,2]
[341906152,1731277874678,-500.0,0.0001479,2]
[341906153,1731277874687,-500.0,0.0001479,2]
[341906154,1731277874696,-177.47460528,0.0001479,2]
[341906155,1731277874706,-500.0,0.0001479,2]
[341906156,1731277874715,-500.0,0.0001479,2]
[341906157,1731277874725,-500.0,0.0001479,2]
[341906158,1731277874734,-500.0,0.0001479,2]
[341906159,1731277874744,-500.0,0.0001479,2]
[341906160,1731277874753,-500.0,0.0001479,2]
[341906161,1731277874763,-500.0,0.0001479,2]
[341906162,1731277874774,-500.0,0.0001479,2]
[341906163,1731277874784,-461.178536,0.0001479,2]
[341906164,1731277874793,-461.178536,0.0001479,2]
[341906165,1731277874803,-500.0,0.0001479,2]
[341906166,1731277874812,-500.0,0.0001479,2]
[341906167,1731277874821,-500.0,0.0001479,2]
[341906168,1731277874831,-500.0,0.0001479,2]
[341906169,1731277874841,-461.178536,0.0001479,2]
[341906170,1731277874850,-461.178528,0.0001479,2]
[341906171,1731277874859,-649.22,0.0001479,2]
[341906172,1731277874869,-649.22,0.0001479,2]
[341906173,1731277874879,-649.22,0.0001479,2]
[341906174,1731277874888,-649.22,0.0001479,2]
[341906175,1731277874898,-1207.49,0.0001479,2]
[341906176,1731277874908,-1207.49,0.0001479,2]
[341906177,1731277874917,-1207.49,0.0001479,2]
[341906178,1731277874926,-1207.49,0.0001479,2]
[341906179,1731277874936,-500.0,0.0001479,2]
[341906180,1731277874945,-500.0,0.0001479,2]
[341906181,1731277874955,-500.0,0.0001479,2]
[341906182,1731277874964,-500.0,0.0001479,2]
[341906183,1731277874973,-500.0,0.0001479,2]
[341906184,1731277874983,-500.0,0.0001479,2]
[341906185,1731277874992,-500.0,0.0001479,2]
[341906186,1731277875002,-500.0,0.0001479,2]
[341906187,1731277875011,-596.29,0.0001479,2]
[341906188,1731277875023,-596.29,0.0001479,2]
[341906189,1731277875032,-596.29,0.0001479,2]
[341906190,1731277875042,-596.29,0.0001479,2]
[341906191,1731277875051,-500.0,0.0001479,2]
[341906192,1731277875061,-500.0,0.0001479,2]
[341906193,1731277875070,-500.0,0.0001479,2]
[341906194,1731277875079,-500.0,0.0001479,2]
[341906195,1731277875089,-585.22,0.0001479,2]
[341906196,1731277875098,-1320.36,0.0001479,2]
[341906197,1731277875107,-1320.36,0.0001479,2]
[341906198,1731277875117,-585.22,0.0001479,2]
[341906199,1731277875126,-585.22,0.0001479,2]
[341906200,1731277875135,-1320.36,0.0001479,2]
[341906201,1731277875144,-585.22,0.0001479,2]
[341906202,1731277875154,-1320.36,0.0001479,2]
[341906203,1731277875163,-633.41,0.0001479,2]
[341906204,1731277875172,-633.41,0.0001479,2]
[341906205,1731277875182,-633.41,0.0001479,2]
[341906206,1731277875191,-500.0,0.0001479,2]
[341906207,1731277875200,-633.41,0.0001479,2]
[341906208,1731277875210,-500.0,0.0001479,2]
[341906209,1731277875219,-757.9,0.0001479,2]
[341906210,1731277875229,-757.9,0.0001479,2]
[341906211,1731277875238,-757.9,0.0001479,2]
[341906212,1731277875248,-892.9,0.0001479,2]
[341906213,1731277875257,-757.9,0.0001479,2]
[341906214,1731277875270,-892.9,0.0001479,2]
[341906215,1731277875279,-892.9,0.0001479,2]
[341906216,1731277875288,-892.9,0.0001479,2]
[341906217,1731277875298,-500.0,0.0001479,2]
[341906218,1731277875307,-500.0,0.0001479,2]
[341906219,1731277875316,-500.0,0.0001479,2]
[341906220,1731277875326,-500.0,0.0001479,2]
[341906221,1731277875336,-500.0,0.0001479,2]
[341906222,1731277875345,-500.0,0.0001479,2]
[341906223,1731277875354,-500.0,0.0001479,2]
[341906224,1731277875364,-500.0,0.0001479,2]
[341906225,1731277875373,-500.0,0.0001479,2]
[341906226,1731277875383,-500.0,0.0001479,2]
[341906227,1731277875392,-500.0,0.0001479,2]
[341906228,1731277875402,-500.0,0.0001479,2]
[341906229,1731277875411,-500.0,0.0001479,2]
[341906230,1731277875420,-500.0,0.0001479,2]
[341906231,1731277875429,-500.0,0.0001479,2]
[341906232,1731277875439,-500.0,0.0001479,2]
[341906233,1731277875448,-500.0,0.0001479,2]
[341906234,1731277875458,-500.0,0.0001479,2]
[341906235,1731277875468,-500.0,0.0001479,2]
[341906236,1731277875477,-500.0,0.0001479,2]
[341906237,1731277875486,-500.0,0.0001479,2]
[341906238,1731277875495,-500.0,0.0001479,2]
[341906239,1731277875505,-500.0,0.0001479,2]
[341906240,1731277875516,-500.0,0.0001479,2]
[341906241,1731277875526,-500.0,0.0001479,2]
[341906242,1731277875535,-500.0,0.0001479,2]
[341906243,1731277875545,-500.0,0.0001479,2]
[341906244,1731277875558,-500.0,0.0001479,2]
[341906245,1731277875567,-500.0,0.0001479,2]
[341906246,1731277875577,-542.19,0.0001479,2]
[341906247,1731277875588,-500.0,0.0001479,2]
[341906248,1731277875598,-500.0,0.0001479,2]
[341906249,1731277875608,-500.0,0.0001479,2]
[341906250,1731277875618,-500.0,0.0001479,2]
[341906251,1731277875628,-500.0,0.0001479,2]
[341906252,1731277875638,-500.0,0.0001479,2]
[341906253,1731277875647,-500.0,0.0001479,2]
[341906254,1731277875657,-500.0,0.0001479,2]
[341906255,1731277875667,-1324.84,0.0001479,2]
[341906256,1731277875677,-1765.88,0.0001479,2]
[341906257,1731277875687,-558.800688,0.0001479,2]
[341906258,1731277875697,-558.800688,0.0001479,2]
[341906259,1731277875707,-500.0,0.0001479,2]
[341906260,1731277875717,-500.0,0.0001479,2]
[341906261,1731277875727,-500.0,0.0001479,2]
[341906262,1731277875737,-500.0,0.0001479,2]
[341906263,1731277875748,-1822.38,0.0001479,2]
[341906264,1731277875758,-558.800688,0.0001479,2]
[341906265,1731277875771,-500.0,0.0001479,2]
[341906266,1731277876009,-500.0,0.0001479,2]
[341906267,1731277876034,-558.800698,0.0001479,2]
[341906268,1731277876045,-500.0,0.0001479,2]
[341906269,1731277876056,-500.0,0.0001479,2]
[341906270,1731277876066,-792.46,0.0001479,2]
[341906271,1731277876076,-500.0,0.0001479,2]
[341906272,1731277876085,-500.0,0.0001479,2]
[341906273,1731277876095,-500.0,0.0001479,2]
[341906274,1731277876105,-500.0,0.0001479,2]
[341906275,1731277876115,-1021.04,0.0001479,2]
[341906276,1731277876125,-514.64,0.0001479,2]
[341906277,1731277876135,-1314.69,0.0001479,2]
[341906278,1731277876144,-517.76,0.0001479,2]
[341906279,1731277876154,-517.76,0.0001479,2]
[341906280,1731277876163,-517.76,0.0001479,2]
[341906281,1731277876173,-517.76,0.0001479,2]
[341906282,1731277876182,-612.01,0.0001479,2]
[341906283,1731277876192,-765.39,0.0001479,2]
[341906284,1731277876202,-765.39,0.0001479,2]
[341906285,1731277876212,-765.39,0.0001479,2]
[341906286,1731277876222,-765.39,0.0001479,2]
[341906287,1731277876232,-2552.19,0.0001479,2]
[341906288,1731277876242,-1201.03,0.0001479,2]
[341906289,1731277876252,-1201.03,0.0001479,2]
[341906290,1731277876262,-1201.03,0.0001479,2]
[341906291,1731277876275,-1201.03,0.0001479,2]
[341906292,1731277876285,-500.0,0.0001479,2]
[341906293,1731277876295,-500.0,0.0001479,2]
[341906294,1731277876306,-500.0,0.0001479,2]
[341906295,1731277876316,-500.0,0.0001479,2]
[341906296,1731277876326,-428.85,0.0001479,2]
[341906297,1731277876336,-500.0,0.0001479,2]
[341906298,1731277876346,-500.0,0.0001479,2]
[341906299,1731277876357,-500.0,0.0001479,2]
[341906300,1731277876367,-500.0,0.0001479,2]
[341906301,1731277876376,-500.0,0.0001479,2]
[341906302,1731277876385,-689.82,0.0001479,2]
[341906303,1731277876395,-689.82,0.0001479,2]
[341906304,1731277876405,-689.82,0.0001479,2]
[341906305,1731277876418,-689.82,0.0001479,2]
[341906306,1731277876428,-500.0,0.0001479,2]
[341906307,1731277876438,-500.0,0.0001479,2]
[341906308,1731277876447,-500.0,0.0001479,2]
[341906309,1731277876457,-500.0,0.0001479,2]
[341906310,1731277876467,-500.0,0.0001479,2]
[341906311,1731277876476,-520.9121522,0.0001479,2]
[341906312,1731277876486,-525.52,0.0001479,2]
[341906313,1731277876496,-525.52,0.0001479,2]
[341906314,1731277876506,-525.52,0.0001479,2]
[341906315,1731277876516,-525.52,0.0001479,2]
[341906316,1731277876526,-1414.65,0.0001479,2]
[341906317,1731277876535,-1414.65,0.0001479,2]
[341906318,1731277876545,-1414.65,0.0001479,2]
[341906319,1731277876558,-1414.65,0.0001479,2]
[341906320,1731277876567,-500.0,0.0001479,2]
[341906321,1731277876576,-500.0,0.0001479,2]
[341906322,1731277876586,-500.0,0.0001479,2]
[341906323,1731277876597,-500.0,0.0001479,2]
[341906324,1731277876607,-500.0,0.0001479,2]
[341906325,1731277876617,-2163.41,0.0001479,2]
[341906326,1731277876627,-500.0,0.0001479,2]
[341906327,1731277876637,-170.851126,0.0001479,2]
[341906328,1731277876647,-170.851126,0.0001479,2]
[341906329,1731277876657,-170.851126,0.0001479,2]
[341906330,1731277876667,-170.851131,0.0001479,2]
[341906331,1731277876677,-860.47,0.0001479,2]
[341906332,1731277876686,-2171.84,0.0001479,2]
[341906333,1731277876696,-860.47,0.0001479,2]
[341906334,1731277876705,-860.47,0.0001479,2]
[341906335,1731277876715,-860.47,0.0001479,2]
[341906336,1731277876725,-4473.22,0.0001479,2]
[341906337,1731277876735,-547.9,0.0001479,2]
[341906338,1731277876744,-547.9,0.0001479,2]
[341906339,1731277876754,-547.9,0.0001479,2]
[341906340,1731277876766,-547.9,0.0001479,2]
[341906341,1731277876776,-1574.12,0.0001479,2]
[341906342,1731277876785,-1574.12,0.0001479,2]
[341906343,1731277876795,-1574.12,0.0001479,2]
[341906344,1731277876805,-1574.12,0.0001479,2]
[341906345,1731277876815,-500.0,0.0001479,2]
[341906346,1731277876824,-500.0,0.0001479,2]
[341906347,1731277876834,-500.0,0.0001479,2]
[341906348,1731277876844,-500.0,0.0001479,2]
[341906349,1731277876854,-500.0,0.0001479,2]
[341906350,1731277876864,-500.0,0.0001479,2]
[341906351,1731277876874,-500.0,0.0001479,2]
[341906352,1731277876884,-500.0,0.0001479,2]
[341906353,1731277876894,-500.0,0.0001479,2]
[341906354,1731277876903,-500.0,0.0001479,2]
[341906355,1731277876913,-500.0,0.0001479,2]
[341906356,1731277876923,-500.0,0.0001479,2]
[341906357,1731277876934,-500.0,0.0001479,2]
[341906358,1731277876947,-500.0,0.0001479,2]
[341906359,1731277876956,-500.0,0.0001479,2]
[341906360,1731277876966,-500.0,0.0001479,2]
[341906361,1731277876976,-500.0,0.0001479,2]
[341906362,1731277876986,-500.0,0.0001479,2]
[341906363,1731277876995,-500.0,0.0001479,2]
[341906364,1731277877005,-500.0,0.0001479,2]
[341906365,1731277877017,-500.0,0.0001479,2]
[341906366,1731277877027,-530.33,0.0001479,2]
[341906367,1731277877036,-530.33,0.0001479,2]
[341906368,1731277877045,-530.33,0.0001479,2]
[341906369,1731277877056,-530.33,0.0001479,2]
[341906370,1731277877066,-11013.71,0.0001479,2]
[341906371,1731277877076,-11013.71,0.0001479,2]
[341906372,1731277877086,-11013.71,0.0001479,2]
[341906373,1731277877095,-11013.71,0.0001479,2]
[341906374,1731277877104,-1768.63,0.0001479,2]
[341906375,1731277877114,-1768.63,0.0001479,2]
[341906376,1731277877123,-1768.63,0.0001479,2]
[341906377,1731277877132,-1768.63,0.0001479,2]
[341906378,1731277877142,-500.0,0.0001479,2]
[341906379,1731277877151,-500.0,0.0001479,2]
[341906380,1731277877160,-500.0,0.0001479,2]
[341906381,1731277877170,-500.0,0.0001479,2]
[341906382,1731277877180,-1446.66,0.0001479,2]
[341906383,1731277877190,-1446.66,0.0001479,2]
[341906384,1731277877199,-1446.66,0.0001479,2]
[341906385,1731277877209,-1446.66,0.0001479,2]
[341906386,1731277877219,-769.5,0.0001479,2]
[341906387,1731277877229,-769.5,0.0001479,2]
[341906388,1731277877238,-769.5,0.0001479,2]
[341906389,1731277877248,-769.5,0.0001479,2]
[341906390,1731277877258,-696.7,0.0001479,2]
[341906391,1731277877269,-696.7,0.0001479,2]
[341906392,1731277877279,-696.7,0.0001479,2]
[341906393,1731277877289,-696.7,0.0001479,2]
[341906394,1731277877298,-1394.49,0.0001479,2]
[341906395,1731277877309,-1394.49,0.0001479,2]
[341906396,1731277877318,-1394.49,0.0001479,2]
[341906397,1731277877327,-1394.49,0.0001479,2]
[341906398,1731277877337,-1398.62,0.0001479,2]
[341906399,1731277877346,-1398.62,0.0001479,2]
[341906400,1731277877356,-1398.62,0.0001479,2]
[341906401,1731277877365,-1398.62,0.0001479,2]
[341906402,1731277877375,-1398.62,0.0001479,2]
[341906403,1731277877385,-1398.62,0.0001479,2]
[341906404,1731277877395,-1398.62,0.0001479,2]
[341906405,1731277877405,-1398.62,0.0001479,2]
[341906406,1731277877415,-1398.69301537,0.0001479,2]
[341906407,1731277877425,-738.9,0.0001479,2]
[341906408,1731277877434,-738.9,0.0001479,2]
[341906409,1731277877443,-738.9,0.0001479,2]
[341906410,1731277877453,-738.9,0.0001479,2]
[341906411,1731277877463,-13865.96,0.0001479,2]
[341906412,1731277877472,-13865.96,0.0001479,2]
[341906413,1731277877482,-13865.96,0.0001479,2]
[341906414,1731277877493,-13865.96,0.0001479,2]
[341906415,1731277877503,-2135.58355828,0.0001479,2]
[341906417,1731277945577,39960.0,0.000171,13]
[341906418,1731277959110,150.0,0.00013,5]
[341906420,1731278116545,9172.82,0.0001417,7]
[341906423,1731278385905,1216.3,0.00011801,2]
[341906428,1731278780098,-168.98,0.00013439,2]
[341906429,1731278780121,-250.0,0.00013524,2]
[341906430,1731278780145,-23900.0,0.00013526,2]
[341906431,1731278780168,-200.0,0.00013544,2]
[341906432,1731278780190,-2211.46795512,0.00013563,2]
[341906433,1731278780214,-264.91,0.00013563,2]
[341906434,1731278780237,-1000.0,0.00013707,2]
[341906435,1731278780261,-403.56,0.00013736,2]
[341906436,1731278780287,-250.0,0.00013775,2]
[341906437,1731278780310,-231.21,0.00013781,2]
[341906438,1731278780333,-261.22,0.00013783,2]
[341906439,1731278780355,-641.75913979,0.00013999,2]
[341906440,1731278780378,-1216.3,0.00014065,2]
[341906441,1731278780400,-1032.0,0.0001417,5]
[341906442,1731278780422,-231.21,0.0001447,2]
[341906443,1731278780443,-318.91750736,0.00014609,2]
[341906444,1731278780465,-1915.85,0.00014617,2]
[341906445,1731278780493,-2500.0,0.00014617,2]
[341906446,1731278780520,-167.53514354,0.00014617,2]
[341906447,1731278780544,-1000.0,0.00014618,2]
[341906448,1731278780568,-916.013,0.00014618,2]
[341906449,1731278780591,-150.0,0.00014618,2]
[341906450,1731278780616,-4037.7483,0.00014618,2]
[341906451,1731278780640,-44840.6037,0.00014619,2]
[341906452,1731278780663,-162.19328967,0.00014619,2]
[341906453,1731278780685,-167.53514353,0.00014657,2]
[341906454,1731278780714,-2971.09225384,0.00014689,2]
[341906455,1731278780737,-178.97174504,0.00014689,2]
[341906456,1731278780760,-167.53514353,0.00014698,2]
[341906457,1731278780786,-865.98,0.000147,2]
[341906458,1731278780809,-500.0,0.00014716,2]
[341906459,1731278780832,-500.0,0.00014716,2]
[341906460,1731278780855,-590.60986598,0.00014716,2]
[341906461,1731278780881,-329.14016175,0.00014716,2]
[341906462,1731278780903,-500.0,0.00014716,2]
[341906463,1731278780926,-500.0,0.00014716,2]
[341906464,1731278780952,-435.8,0.00014716,2]
[341906465,1731278780974,-500.0,0.00014716,2]
[341906466,1731278780999,-2811.68,0.00014716,2]
[341906467,1731278781023,-500.0,0.00014716,2]
[341906468,1731278781045,-500.0,0.00014716,2]
[341906469,1731278781066,-958.02,0.00014716,2]
[341906470,1731278781091,-500.0,0.00014716,2]
[341906471,1731278781113,-500.0,0.00014716,2]
[341906472,1731278781135,-500.0,0.00014716,2]
[341906473,1731278781159,-2156.1,0.00014716,2]
[341906474,1731278781183,-500.0,0.00014716,2]
[341906475,1731278781207,-500.0,0.00014716,2]
[341906476,1731278781232,-4813.23,0.00014716,2]
[341906477,1731278781258,-500.0,0.00014716,2]
[341906478,1731278781286,-500.0,0.00014716,2]
[341906479,1731278781309,-3067.03,0.00014716,2]
[341906480,1731278781332,-500.0,0.00014716,2]
[341906481,1731278781355,-500.0,0.00014716,2]
[341906482,1731278781376,-1061.01,0.00014716,2]
[341906483,1731278781400,-500.0,0.00014716,2]
[341906484,1731278781422,-507.12,0.00014716,2]
[341906485,1731278781444,-1465.91,0.00014716,2]
[341906486,1731278781467,-500.0,0.00014716,2]
[341906487,1731278781490,-777.21,0.00014716,2]
[341906488,1731278781515,-364.18965525,0.00014716,2]
[341906489,1731278781538,-641.24,0.00014716,2]
[341906490,1731278781560,-500.0,0.00014716,2]
[341906491,1731278781583,-500.0,0.00014716,2]
[341906492,1731278781605,-168.83235547,0.00014716,2]
[341906493,1731278781630,-500.0,0.00014716,2]
[341906494,1731278781654,-491.60695418,0.00014716,2]
[341906495,1731278781676,-500.0,0.00014716,2]